Department Family,Entity,Date,Fiscal Date,Expense Type,Expense Area,Supplier,Transaction Number,AP Amount,VAT Registration Number,Purchase Invoice Number
Department of Health,Derbyshire Healthcare NHS Foundation Trust,31/01/2024,31/01/2024,AUC Additions,Balance Sheet,KIER INFRASTRUCTURE AND OVERSEAS LTD,49380810,120702.35,476073824,10326058
Department of Health,Derbyshire Healthcare NHS Foundation Trust,31/01/2024,31/01/2024,AUC Additions,Balance Sheet,INTEGRATED HEALTH PROJECTS,49550364,1602618.97,830007284,24010005
Department of Health,Derbyshire Healthcare NHS Foundation Trust,31/01/2024,31/01/2024,AUC Additions,Balance Sheet,STEPNELL LTD,49571188,220699.51,,23031
Department of Health,Derbyshire Healthcare NHS Foundation Trust,31/01/2024,31/01/2024,Agency Admin & Clerical,Temporary Staff Control,INTERACT MEDICAL,49578851,31441.51,650778024,WK40INT2324
Department of Health,Derbyshire Healthcare NHS Foundation Trust,31/01/2024,31/01/2024,Agency Admin & Clerical,Temporary Staff Control,SERVICE CARE SOLUTIONS LTD,49578868,41795.23,853479002,WK40SCS2324
Department of Health,Derbyshire Healthcare NHS Foundation Trust,31/01/2024,31/01/2024,Independent Sector,DerbyshireSubstanceMisuse,INTUITIVE THINKING SKILLS LTD,49597957,39018.9,GB857566181,13952
Department of Health,Derbyshire Healthcare NHS Foundation Trust,31/01/2024,31/01/2024,Independent Sector,DerbyshireSubstanceMisuse,INTUITIVE THINKING SKILLS LTD,49597978,39018.9,GB857566181,14036
Department of Health,Derbyshire Healthcare NHS Foundation Trust,31/01/2024,31/01/2024,Independent Sector,DerbyshireSubstanceMisuse,INTUITIVE THINKING SKILLS LTD,49597982,39018.9,GB857566181,14162
Department of Health,Derbyshire Healthcare NHS Foundation Trust,31/01/2024,31/01/2024,Computer Maintenance,IT Infrastructure,NHS ARDEN AND GEM CSU,49620253,312566.75,,7312630123
Department of Health,Derbyshire Healthcare NHS Foundation Trust,31/01/2024,31/01/2024,Income tax - Current,Balance Sheet,INLAND REVENUE CIS,49638699,1510692.93,,507PX001657472409
Department of Health,Derbyshire Healthcare NHS Foundation Trust,31/01/2024,31/01/2024,National Insurance - Curr,Balance Sheet,INLAND REVENUE CIS,49638699,1762288.21,,507PX001657472409
Department of Health,Derbyshire Healthcare NHS Foundation Trust,31/01/2024,31/01/2024,Legal Fees,Corporate + Legal Affairs,BROWNE JACOBSON LLP,49662162,63425.3,116396270,1047999
Department of Health,Derbyshire Healthcare NHS Foundation Trust,31/01/2024,31/01/2024,Independent Sector,LD Admin,CITIZENS ADVICE MID MERCIA,49662171,26666,,2386
Department of Health,Derbyshire Healthcare NHS Foundation Trust,31/01/2024,31/01/2024,Independent Sector,LD Admin,CITIZENS ADVICE MID MERCIA,49662183,26666,,2385
Department of Health,Derbyshire Healthcare NHS Foundation Trust,31/01/2024,31/01/2024,SrvcsRecd-FoundationTrust,P and I Contracts,DERBYSHIRE COMMUNITY HEALTH SERVICES NHS FOUNDATION TRUST,49662189,144596.5,654441286,600005912
Department of Health,Derbyshire Healthcare NHS Foundation Trust,31/01/2024,31/01/2024,Independent Sector,DerbyshireSubstanceMisuse,DERBYSHIRE ALCOHOL ADVICE SERVICE,49662192,46599,,20232417
Department of Health,Derbyshire Healthcare NHS Foundation Trust,31/01/2024,31/01/2024,ERet Provn Staff O Bal NC,Balance Sheet,NHS BUSINESS SERVICES AUTHORITY,49662203,36335.94,GB 654 4347 29,1000005425
Department of Health,Derbyshire Healthcare NHS Foundation Trust,31/01/2024,31/01/2024,Independent Sector,Derby Substance Misuse,PHOENIX HOUSE,49662207,151579,,114753
Department of Health,Derbyshire Healthcare NHS Foundation Trust,31/01/2024,31/01/2024,Independent Sector,IAPT,DERWENT RURAL COUNSELLING SERVICES,49667857,143640.89,,24082
Department of Health,Derbyshire Healthcare NHS Foundation Trust,31/01/2024,31/01/2024,AUC Additions,Balance Sheet,CURRYS GROUP LTD,49698877,35299.4,GB 2266 59933,0955D1B3
Department of Health,Derbyshire Healthcare NHS Foundation Trust,31/01/2024,31/01/2024,Foundation Programme - F1,CountyS Training Grades,UNIVERSITY HOSPITALS OF DERBY & BURTON NHS FOUNDATION TRUST,49706949,40341.09,654 9679 76,800039588
Department of Health,Derbyshire Healthcare NHS Foundation Trust,31/01/2024,31/01/2024,Agency Healthcare Asst,Service Delivery Mgt,PROMETHEUS COMPLEX CARE LTD,49734589,36587.67,433547593,INV8543
Department of Health,Derbyshire Healthcare NHS Foundation Trust,31/01/2024,31/01/2024,Obligations under IFRS16 Right of Use Leased Assets (Non -Current),Balance Sheet,CHESTERFIELD ROYAL HOSPITAL NHS FOUNDATION TRUST,49734594,28895,654915709,4567614
Department of Health,Derbyshire Healthcare NHS Foundation Trust,31/01/2024,31/01/2024,SrvcsRecd-FoundationTrust,CHRoyal Facilities SLA,CHESTERFIELD ROYAL HOSPITAL NHS FOUNDATION TRUST,49734594,35633,654915709,4567614
Department of Health,Derbyshire Healthcare NHS Foundation Trust,31/01/2024,31/01/2024,SrvcsRecd-FoundationTrust,DCHS Facilities SLA,DERBYSHIRE COMMUNITY HEALTH SERVICES NHS FOUNDATION TRUST,49734596,39519,654441286,600005983
Department of Health,Derbyshire Healthcare NHS Foundation Trust,31/01/2024,31/01/2024,SrvcsRecd-FoundationTrust,DCHS Properties SLA,DERBYSHIRE COMMUNITY HEALTH SERVICES NHS FOUNDATION TRUST,49734596,30794,654441286,600005983
Department of Health,Derbyshire Healthcare NHS Foundation Trust,31/01/2024,31/01/2024,Independent Sector,DerbyshireSubstanceMisuse,PHOENIX HOUSE,49734634,202881.75,,114770
Department of Health,Derbyshire Healthcare NHS Foundation Trust,31/01/2024,31/01/2024,Legal Fees,Corporate + Legal Affairs,BROWNE JACOBSON LLP,49742026,36148.36,116396270,1043518
Department of Health,Derbyshire Healthcare NHS Foundation Trust,31/01/2024,31/01/2024,SrvcsRecd-FoundationTrust,Perinatal Collaborative - East Midlands,NOTTINGHAMSHIRE HEALTHCARE NHS TRUST,49742035,189453.81,654406833,1000057646
Department of Health,Derbyshire Healthcare NHS Foundation Trust,31/01/2024,31/01/2024,Independent Sector,MH Helpline + Support Srvs,P3,49742037,51214.02,,INVS020096
Department of Health,Derbyshire Healthcare NHS Foundation Trust,31/01/2024,31/01/2024,Independent Sector,MH Helpline + Support Srvs,P3,49742041,51214.02,,INVS0098
Department of Health,Derbyshire Healthcare NHS Foundation Trust,31/01/2024,31/01/2024,Trade Local Debtors Adj,Balance Sheet,VODAFONE CORPORATE LTD,49742100,89977.48,569953277,105249143
Department of Health,Derbyshire Healthcare NHS Foundation Trust,31/01/2024,31/01/2024,Agency Admin & Clerical,Temporary Staff Control,ATHONA LTD,49748487,36674.02,GB848352111,WK42ATH2324
Department of Health,Derbyshire Healthcare NHS Foundation Trust,31/01/2024,31/01/2024,Agency Admin & Clerical,Temporary Staff Control,INTERACT MEDICAL,49748489,56458.32,650778024,WK42INT2324
Department of Health,Derbyshire Healthcare NHS Foundation Trust,31/01/2024,31/01/2024,Agency Admin & Clerical,Temporary Staff Control,SERVICE CARE SOLUTIONS LTD,49748491,31735.75,853479002,WK42SCS2324
Department of Health,Derbyshire Healthcare NHS Foundation Trust,31/01/2024,31/01/2024,Bldg Ctrcts - PFI Svc Chg,Kingsway PFI,ARDEN PARTNERSHIP (DERBY) LTD,49760036,117337.16,911330964,SI0238
Department of Health,Derbyshire Healthcare NHS Foundation Trust,31/01/2024,31/01/2024,Finance Lease & HP NCurr,Balance Sheet,ARDEN PARTNERSHIP (DERBY) LTD,49760036,118425.96,911330964,SI0238
Department of Health,Derbyshire Healthcare NHS Foundation Trust,31/01/2024,31/01/2024,Interest Payable,BTL,ARDEN PARTNERSHIP (DERBY) LTD,49760036,156328.08,911330964,SI0238
Department of Health,Derbyshire Healthcare NHS Foundation Trust,31/01/2024,31/01/2024,Othr Prepay&AccrIncmNCurr,Balance Sheet,ARDEN PARTNERSHIP (DERBY) LTD,49760036,78667.59,911330964,SI0238
Department of Health,Derbyshire Healthcare NHS Foundation Trust,31/01/2024,31/01/2024,Electricity,Kingsway House,SCOTTISH HYDRO ELECTRIC PLC,49761778,30529.18,,7.517E+11
Department of Health,Derbyshire Healthcare NHS Foundation Trust,31/01/2024,31/01/2024,Agency Healthcare Asst,Service Delivery Mgt,PROMETHEUS COMPLEX CARE LTD,49767268,38976,433547593,INV8769
Department of Health,Derbyshire Healthcare NHS Foundation Trust,31/01/2024,31/01/2024,Agency Healthcare Asst,Service Delivery Mgt,PROMETHEUS COMPLEX CARE LTD,49767269,38976,433547593,INV8774
Department of Health,Derbyshire Healthcare NHS Foundation Trust,31/01/2024,31/01/2024,Agency Healthcare Asst,Service Delivery Mgt,PROMETHEUS COMPLEX CARE LTD,49767270,38976,433547593,INV8984
Department of Health,Derbyshire Healthcare NHS Foundation Trust,31/01/2024,31/01/2024,AUC Additions,Balance Sheet,KIER INFRASTRUCTURE AND OVERSEAS LTD,49788139,330313.65,476073824,10329296
Department of Health,Derbyshire Healthcare NHS Foundation Trust,31/01/2024,31/01/2024,AUC Additions,Balance Sheet,KNIGHTSBRIDGE FURNITURE PRODUCTIONS LTD,49815743,27794.3,179645610,227331
Department of Health,Derbyshire Healthcare NHS Foundation Trust,31/01/2024,31/01/2024,SrvcsRecd-FoundationTrust,P and I Contracts,DERBYSHIRE COMMUNITY HEALTH SERVICES NHS FOUNDATION TRUST,49817824,144596.5,654441286,600006041
Department of Health,Derbyshire Healthcare NHS Foundation Trust,31/01/2024,31/01/2024,SrvcsRecd-FoundationTrust,Service Delivery Mgt,DERBYSHIRE COMMUNITY HEALTH SERVICES NHS FOUNDATION TRUST,49817827,60286.13,654441286,600006044
Department of Health,Derbyshire Healthcare NHS Foundation Trust,31/01/2024,31/01/2024,Computer Software/License,Finance Dept,LOGEX HEALTHCARE ANALYTICS LTD,49834325,30000,GB 7441 88809,INVPRUK000212
Department of Health,Derbyshire Healthcare NHS Foundation Trust,31/01/2024,31/01/2024,Agency Admin & Clerical,Temporary Staff Control,ASPECT HEALTHCARE LTD,49855014,29013.94,GB 323 975 876,WK44ASP2324
Department of Health,Derbyshire Healthcare NHS Foundation Trust,31/01/2024,31/01/2024,Agency Admin & Clerical,Temporary Staff Control,INTERACT MEDICAL,49855021,75984.68,650778024,WK44INT2324
Department of Health,Derbyshire Healthcare NHS Foundation Trust,31/01/2024,31/01/2024,Agency Admin & Clerical,Temporary Staff Control,SERVICE CARE SOLUTIONS LTD,49855026,28766.62,853479002,WK44SCS2324
Department of Health,Derbyshire Healthcare NHS Foundation Trust,31/01/2024,31/01/2024,Drugs,DerbyshireSubstanceMisuse,DERBYSHIRE COUNTY COUNCIL,49864192,75533.2,127248178,1.0002E+17
Department of Health,Derbyshire Healthcare NHS Foundation Trust,31/01/2024,31/01/2024,Independent Sector,Adult Acute OOA,MIDDLETON ST GEORGE PRIORY,49871117,25536,GB 62652483 5,3900017774
